[Event "Marshall CC Premier 01-2025"]
[Site "New York"]
[Date "2025.01.05"]
[Round "4.8"]
[White "Dong, Kyle Qiyu"]
[Black "Debmisra, Ariv"]
[Result "1-0"]
[ECO "A20"]
[WhiteElo "1998"]
[BlackElo "1803"]
[Annotator "RC"]
[PlyCount "75"]
[EventDate "2025.01.03"]
[EventType "swiss"]
[EventCountry "USA"]
[SourceTitle "playchess.com"]
[Source "ChessBase"]
[SourceQuality "1"]
[TimeControl "5400+30"]

1. c4 {[%emt 0:00:01]} e5 {[%emt 0:07:28]} 2. g3 {[%emt 0:00:13]} Nf6 {[%emt 0:00:13]} 3. Bg2 {[%emt 0:00:03]} d5 {[%emt 0:00:14]} 4. cxd5 {[%emt 0:00:07]} Nxd5 {[%emt 0:00:06]} 5. Nf3 {[%emt 0:00:04]} Nc6 {[%emt 0:00:11]} 6. O-O {[%emt 0:00:05]} Bc5 {[%emt 0:00:09]} 7. Nxe5 {[%emt 0:00:28]} Nxe5 {[%emt 0:00:12]} 8. d4 {[%emt 0:00:03]} Nb4 {[%emt 0:02:49]} 9. dxc5 {[%emt 0:00:28]} Qxd1 {[%emt 0:00:12]} 10. Rxd1 {[%emt 0:00:02]} Nc2 {[%emt 0:00:11]} 11. Nc3 {[%emt 0:00:07]} Nxa1 {[%emt 0:01:01]} 12. Bf4 {[%emt 0:00:05]} Ng6 {[%emt 0:00:33]} 13. Bxc7 {[%emt 0:00:50]} O-O {[%emt 0:02:10]} 14. Rxa1 {[%emt 0:00:59]} Ne7 {[%emt 0:04:55]} 15. Bd6 {[%emt 0:00:40]} Re8 {[%emt 0:00:31]} 16. Nb5 {[%emt 0:00:01]} Nc6 {[%emt 0:03:09]} 17. Nc7 {[%emt 0:01:02]} Bd7 {[%emt 0:00:20]} 18. Nxa8 {[%emt 0:00:09]} Rxa8 {[%emt 0:00:10]} 19. e3 {[%emt 0:04:06]} Rc8 {[%emt 0:00:38]} 20. Rc1 {[%emt 0:01:25]} Nd8 {[%emt 0:01:50]} 21. b4 {[%emt 0:02:50]} Bb5 {[%emt 0:00:54]} 22. a4 {[%emt 1:27:42]} Bd7 {[%emt 0:01:02]} 23. b5 {[%emt 0:00:00]} a6 {[%emt 0:00:33]} 24. Rb1 {[%emt 0:00:00]} axb5 {[%emt 0:01:40]} 25. axb5 {[%emt 0:00:00]} h6 {[%emt 0:00:12]} 26. Be7 {[%emt 0:00:00]} Bf5 {[%emt 0:02:58]} 27. Rd1 {[%emt 0:00:00]} Ne6 {[%emt 0:00:29]} 28. Rc1 {[%emt 0:00:00]} Rc7 {[%emt 0:01:08]} 29. Bd6 {[%emt 0:00:00]} Rd7 {[%emt 0:00:12]} 30. b6 {[%emt 0:00:00]} Nd8 {[%emt 0:02:00]} 31. Bc7 {[%emt 0:00:00]} Kf8 {[%emt 0:04:22]} 32. Bxd8 {[%emt 0:00:00]} Rxd8 {[%emt 0:00:09]} 33. Bxb7 {[%emt 0:00:00]} Ke7 {[%emt 0:01:10]} 34. c6 {[%emt 0:00:00]} Rb8 {[%emt 0:00:06]} 35. e4 {[%emt 0:00:00]} Be6 {[%emt 0:00:08]} 36. f4 {[%emt 0:00:00]} g6 {[%emt 0:00:08]} 37. g4 {[%emt 0:00:00]} Bxg4 {[%emt 0:00:24]} 38. f5 {[%emt 0:00:00]} 1-0

[Event "Marshall CC Premier 01-2025"]
[Site "New York"]
[Date "2025.01.05"]
[Round "4.9"]
[White "Sukhiashvili, Alexander"]
[Black "Gartenlaub, Corin"]
[Result "1-0"]
[ECO "C41"]
[WhiteElo "2019"]
[BlackElo "2027"]
[Annotator "RC"]
[PlyCount "73"]
[EventDate "2025.01.03"]
[EventType "swiss"]
[EventCountry "USA"]
[SourceTitle "playchess.com"]
[Source "ChessBase"]
[SourceQuality "1"]
[TimeControl "5400+30"]

1. e4 {[%emt 0:00:01]} d6 {[%emt 0:00:02]} 2. d4 {[%emt 0:00:04]} Nf6 {[%emt 0:00:02]} 3. Nc3 {[%emt 0:00:04]} e5 {[%emt 0:00:02]} 4. Nf3 {[%emt 0:00:02]} Nbd7 {[%emt 0:00:02]} 5. Bc4 {[%emt 0:00:05]} Be7 {[%emt 0:00:02]} 6. a4 {[%emt 0:00:20]} c6 {[%emt 0:00:06]} 7. O-O {[%emt 0:00:13]} O-O {[%emt 0:00:02]} 8. h3 {[%emt 0:00:12]} h6 {[%emt 0:00:02]} 9. Re1 {[%emt 0:04:44]} Re8 {[%emt 0:00:28]} 10. a5 {[%emt 0:04:14]} Bf8 {[%emt 0:03:16]} 11. Qd3 {[%emt 0:10:39]} exd4 {[%emt 0:00:51]} 12. Qxd4 {[%emt 0:00:58]} Qc7 {[%emt 0:09:58]} 13. Bf4 {[%emt 0:16:50]} Ne5 {[%emt 0:03:00]} 14. Be2 {[%emt 0:00:20]} Nfd7 {[%emt 0:04:01]} 15. Bg3 {[%emt 0:01:44]} Nxf3+ {[%emt 0:00:27]} 16. Bxf3 {[%emt 0:00:04]} Ne5 {[%emt 0:00:08]} 17. Be2 {[%emt 0:00:10]} Ng6 {[%emt 0:04:53]} 18. Red1 {[%emt 0:04:15]} Rd8 {[%emt 0:05:17]} 19. h4 {[%emt 0:11:00]} Be7 {[%emt 0:10:28]} 20. h5 {[%emt 0:06:24]} Nf8 {[%emt 0:01:51]} 21. Qc4 {[%emt 0:02:51]} Qb8 {[%emt 0:22:57]} 22. Rd2 {[%emt 0:05:28]} Be6 {[%emt 0:33:35]} 23. Qb4 {[%emt 0:03:49]} b6 {[%emt 0:00:00]} 24. Rad1 {[%emt 0:04:50]} bxa5 {[%emt 0:00:00]} 25. Qxa5 {[%emt 0:00:16]} Rd7 {[%emt 0:00:00]} 26. Qa3 {[%emt 0:06:45]} Rb7 {[%emt 0:00:00]} 27. Bxd6 {[%emt 0:00:56]} Bxd6 {[%emt 0:00:00]} 28. Rxd6 {[%emt 0:00:03]} Qc7 {[%emt 0:00:00]} 29. Na4 {[%emt 0:01:56]} Rab8 {[%emt 0:00:00]} 30. b3 {[%emt 0:00:46]} Nd7 {[%emt 0:00:00]} 31. Nc5 {[%emt 0:00:29]} Nxc5 {[%emt 0:00:00]} 32. Qxc5 {[%emt 0:00:02]} Rb6 {[%emt 0:00:00]} 33. f4 {[%emt 0:00:32]} Rb4 {[%emt 0:00:32]} 34. Bf3 {[%emt 0:00:54]} R8b6 {[%emt 0:01:41]} 35. f5 {[%emt 0:01:11]} R6b5 {[%emt 0:00:16]} 36. Rd8+ {[%emt 0:00:22]} Kh7 {[%emt 0:00:07]} 37. Qf8 {[%emt 0:00:09]} 1-0

[Event "Marshall CC Premier 01-2025"]
[Site "New York"]
[Date "2025.01.05"]
[Round "4.10"]
[White "Hinson, Miles"]
[Black "Raparthi, Ankit"]
[Result "1/2-1/2"]
[ECO "B72"]
[WhiteElo "1975"]
[BlackElo "1941"]
[Annotator "RC"]
[PlyCount "79"]
[EventDate "2025.01.03"]
[EventType "swiss"]
[EventCountry "USA"]
[SourceTitle "playchess.com"]
[Source "ChessBase"]
[SourceQuality "1"]
[TimeControl "5400+30"]

1. e4 {[%emt 0:00:02]} c5 {[%emt 0:22:14]} 2. Nf3 {[%emt 0:06:27]} d6 {[%emt 0:00:06]} 3. d4 {[%emt 0:00:03]} cxd4 {[%emt 0:00:04]} 4. Nxd4 {[%emt 0:00:03]} Nf6 {[%emt 0:00:08]} 5. Nc3 {[%emt 0:00:01]} g6 {[%emt 0:00:04]} 6. Be3 {[%emt 0:00:03]} Nc6 {[%emt 0:00:05]} 7. f3 {[%emt 0:00:31]} h5 {[%emt 0:00:12]} 8. Qd2 {[%emt 0:01:52]} Nxd4 {[%emt 0:00:09]} 9. Bxd4 {[%emt 0:00:39]} Bh6 {[%emt 0:00:05]} 10. Be3 {[%emt 0:11:16]} Bxe3 {[%emt 0:00:16]} 11. Qxe3 {[%emt 0:00:04]} Be6 {[%emt 0:00:08]} 12. Be2 {[%emt 0:03:28]} Qa5 {[%emt 0:00:36]} 13. O-O {[%emt 0:04:49]} Rc8 {[%emt 0:01:05]} 14. Qd4 {[%emt 0:06:05]} O-O {[%emt 0:03:10]} 15. f4 {[%emt 0:06:39]} Qc5 {[%emt 0:02:01]} 16. Rad1 {[%emt 0:00:26]} Bg4 {[%emt 0:04:33]} 17. Rf2 {[%emt 0:07:26]} Qxd4 {[%emt 0:05:47]} 18. Rxd4 {[%emt 0:00:58]} Rc5 {[%emt 0:00:20]} 19. Bxg4 {[%emt 0:06:42]} Nxg4 {[%emt 0:00:19]} 20. Re2 {[%emt 0:00:05]} Rfc8 {[%emt 0:03:32]} 21. Rdd2 {[%emt 0:02:34]} Kf8 {[%emt 0:05:34]} 22. h3 {[%emt 0:00:51]} Nh6 {[%emt 0:00:42]} 23. Kf2 {[%emt 0:04:46]} f6 {[%emt 0:01:26]} 24. Kf3 {[%emt 0:04:03]} g5 {[%emt 0:01:09]} 25. g3 {[%emt 0:02:24]} h4 {[%emt 0:02:53]} 26. gxh4 {[%emt 0:00:51]} gxf4 {[%emt 0:01:16]} 27. Kxf4 {[%emt 0:00:07]} Rh5 {[%emt 0:00:36]} 28. Rd5 {[%emt 0:00:22]} e5+ {[%emt 0:02:43]} 29. Ke3 {[%emt 0:02:38]} Ke7 {[%emt 0:04:48]} 30. Rd3 {[%emt 0:04:21]} Rxh4 {[%emt 0:02:03]} 31. Kd2 {[%emt 0:02:39]} f5 {[%emt 0:01:11]} 32. Rg3 {[%emt 0:02:02]} Kf7 {[%emt 0:09:06]} 33. exf5 {[%emt 0:04:06]} Rf4 {[%emt 0:01:19]} 34. Nd5 {[%emt 0:02:01]} Rd4+ {[%emt 0:02:03]} 35. Rd3 {[%emt 0:00:04]} Nxf5 {[%emt 0:05:08]} 36. Rf2 {[%emt 0:00:28]} Ke6 {[%emt 0:01:26]} 37. Rxf5 {[%emt 0:01:52]} Rxd5 {[%emt 0:02:32]} 38. Rh5 {[%emt 0:01:11]} Rxd3+ {[%emt 0:00:14]} 39. cxd3 {[%emt 0:00:05]} Rc7 {[%emt 0:01:05]} 40. Rg5 {[%emt 0:01:40]} 1/2-1/2